[Event "Titled Tuesday Blitz August 31 2021"]
[White "Reprintsev, Alexander"]
[Black "Gabrielian, Artur"]
[WhiteFideId "14100541"]
[BlackFideId "4131002"]
[WhiteElo "2126"]
[BlackElo "2513"]
[Result "0-1"]
[Round "08"]
[TimeControl "180+1"]
[Date "2021.08.31"]
[WhiteClock "0:00:47"]
[BlackClock "0:01:52"]

1. e4 {[%clk 0:02:43]}  e5 {[%clk 0:02:56]} 2. f4 {[%clk 0:02:42]}  d5 {[%clk 0:02:53]} 3. exd5 {[%clk 0:02:41]}  exf4 {[%clk 0:02:54]} 4. Nf3 {[%clk 0:02:41]}  Nf6 {[%clk 0:02:53]} 5. Bb5+ {[%clk 0:02:40]}  c6 {[%clk 0:02:52]} 6. dxc6 {[%clk 0:02:40]}  bxc6 {[%clk 0:02:51]} 7. Bc4 {[%clk 0:02:39]}  Bd6 {[%clk 0:02:48]} 8. Qe2+ {[%clk 0:02:39]}  Kf8 {[%clk 0:02:48]} 9. d4 {[%clk 0:02:36]}  Nbd7 {[%clk 0:02:40]} 10. O-O {[%clk 0:02:33]}  Nb6 {[%clk 0:02:40]} 11. Bb3 {[%clk 0:02:32]}  h6 {[%clk 0:02:38]} 12. c4 {[%clk 0:02:31]}  Bc7 {[%clk 0:02:35]} 13. Nc3 {[%clk 0:01:59]}  g5 {[%clk 0:02:27]} 14. c5 {[%clk 0:01:50]}  Nbd5 {[%clk 0:02:25]} 15. Nxd5 {[%clk 0:01:49]}  Nxd5 {[%clk 0:02:24]} 16. Ne5 {[%clk 0:01:47]}  Qf6 {[%clk 0:02:16]} 17. Bxd5 {[%clk 0:01:41]}  cxd5 {[%clk 0:02:16]} 18. Bd2 {[%clk 0:01:31]}  Kg7 {[%clk 0:02:13]} 19. b4 {[%clk 0:01:31]}  Re8 {[%clk 0:02:10]} 20. Bc3 {[%clk 0:01:30]}  Qf5 {[%clk 0:02:04]} 21. a4 {[%clk 0:01:28]}  f6 {[%clk 0:02:04]} 22. Rae1 {[%clk 0:01:20]}  fxe5 {[%clk 0:02:03]} 23. dxe5 {[%clk 0:01:21]}  Be6 {[%clk 0:02:03]} 24. b5 {[%clk 0:01:20]}  d4 {[%clk 0:02:02]} 25. Bxd4 {[%clk 0:01:18]}  Rad8 {[%clk 0:02:02]} 26. Ba1 {[%clk 0:01:16]}  Qd3 {[%clk 0:01:59]} 27. Qb2 {[%clk 0:00:56]}  Qb3 {[%clk 0:01:57]} 28. Qxb3 {[%clk 0:00:51]}  Bxb3 {[%clk 0:01:57]} 29. e6+ {[%clk 0:00:52]}  Kg6 {[%clk 0:01:56]} 30. e7 {[%clk 0:00:48]}  Rd7 {[%clk 0:01:54]} 31. b6 {[%clk 0:00:48]}  axb6 {[%clk 0:01:53]} 32. Re6+ {[%clk 0:00:47]}  Bxe6 {[%clk 0:01:52]} 0-1


[Site "https://www.chess.com"]

[Event "Titled Tuesday Blitz August 31 2021"]
[White "Rustemov, Alexander"]
[Black "Viani Antonio Dcunha"]
[WhiteFideId "4119002"]
[BlackFideId "5027330"]
[WhiteElo "2754"]
[BlackElo "2642"]
[Result "1-0"]
[Round "08"]
[TimeControl "180+1"]
[Date "2021.08.31"]
[WhiteClock "0:00:24"]
[BlackClock "0:00:04"]

1. d4 {[%clk 0:03:00]}  Nf6 {[%clk 0:02:27]} 2. c4 {[%clk 0:03:00]}  g6 {[%clk 0:02:27]} 3. Nf3 {[%clk 0:03:00]}  Bg7 {[%clk 0:02:27]} 4. g3 {[%clk 0:03:00]}  O-O {[%clk 0:02:28]} 5. Bg2 {[%clk 0:03:01]}  d6 {[%clk 0:02:28]} 6. Nc3 {[%clk 0:03:01]}  Nbd7 {[%clk 0:02:28]} 7. d5 {[%clk 0:03:01]}  a5 {[%clk 0:02:26]} 8. Be3 {[%clk 0:03:00]}  e5 {[%clk 0:02:23]} 9. dxe6 {[%clk 0:02:59]}  fxe6 {[%clk 0:02:24]} 10. O-O {[%clk 0:02:56]}  Ng4 {[%clk 0:02:22]} 11. Bg5 {[%clk 0:02:55]}  Bf6 {[%clk 0:02:21]} 12. Bxf6 {[%clk 0:02:53]}  Ngxf6 {[%clk 0:02:22]} 13. b3 {[%clk 0:02:41]}  Nc5 {[%clk 0:02:20]} 14. a3 {[%clk 0:02:39]}  Qe7 {[%clk 0:02:10]} 15. b4 {[%clk 0:02:38]}  axb4 {[%clk 0:02:02]} 16. axb4 {[%clk 0:02:39]}  Rxa1 {[%clk 0:02:02]} 17. Qxa1 {[%clk 0:02:39]}  Na6 {[%clk 0:02:03]} 18. Qb2 {[%clk 0:02:34]}  e5 {[%clk 0:02:01]} 19. Nd2 {[%clk 0:02:28]}  c6 {[%clk 0:01:57]} 20. b5 {[%clk 0:02:26]}  cxb5 {[%clk 0:01:53]} 21. Qxb5 {[%clk 0:02:21]}  Nc5 {[%clk 0:01:52]} 22. Qb6 {[%clk 0:02:10]}  Be6 {[%clk 0:01:36]} 23. Nb5 {[%clk 0:01:59]}  d5 {[%clk 0:01:25]} 24. cxd5 {[%clk 0:01:48]}  Nxd5 {[%clk 0:01:26]} 25. Qd6 {[%clk 0:01:38]}  Qxd6 {[%clk 0:01:18]} 26. Nxd6 {[%clk 0:01:39]}  Nc3 {[%clk 0:01:08]} 27. Nxb7 {[%clk 0:01:21]}  Nxe2+ {[%clk 0:01:00]} 28. Kh1 {[%clk 0:01:21]}  Nxb7 {[%clk 0:00:57]} 29. Bxb7 {[%clk 0:01:22]}  Rd8 {[%clk 0:00:53]} 30. Nf3 {[%clk 0:01:17]}  Rb8 {[%clk 0:00:42]} 31. Ba6 {[%clk 0:01:11]}  Nd4 {[%clk 0:00:36]} 32. Nxe5 {[%clk 0:01:10]}  Bd5+ {[%clk 0:00:30]} 33. Kg1 {[%clk 0:01:04]}  Rb6 {[%clk 0:00:20]} 34. Bc4 {[%clk 0:01:03]}  Nf3+ {[%clk 0:00:17]} 35. Nxf3 {[%clk 0:01:02]}  Bxc4 {[%clk 0:00:17]} 36. Re1 {[%clk 0:01:02]}  Rf6 {[%clk 0:00:17]} 37. Ne5 {[%clk 0:01:02]}  Be6 {[%clk 0:00:17]} 38. Kg2 {[%clk 0:01:00]}  Kg7 {[%clk 0:00:17]} 39. h3 {[%clk 0:00:55]}  Bd5+ {[%clk 0:00:17]} 40. f3 {[%clk 0:00:52]}  Bb7 {[%clk 0:00:17]} 41. g4 {[%clk 0:00:51]}  g5 {[%clk 0:00:16]} 42. Kg3 {[%clk 0:00:51]}  Bd5 {[%clk 0:00:14]} 43. Rd1 {[%clk 0:00:50]}  Bf7 {[%clk 0:00:14]} 44. Rd7 {[%clk 0:00:49]}  Kg8 {[%clk 0:00:14]} 45. h4 {[%clk 0:00:33]}  gxh4+ {[%clk 0:00:09]} 46. Kxh4 {[%clk 0:00:33]}  Be6 {[%clk 0:00:09]} 47. Re7 {[%clk 0:00:29]}  h6 {[%clk 0:00:06]} 48. f4 {[%clk 0:00:27]}  Bd5 {[%clk 0:00:03]} 49. f5 {[%clk 0:00:25]}  Bf7 {[%clk 0:00:02]} 50. Rxf7 {[%clk 0:00:24]}  Rxf7 {[%clk 0:00:03]} 51. Nxf7 {[%clk 0:00:24]}  Kxf7 {[%clk 0:00:04]} 52. Kh5 {[%clk 0:00:24]}  Kg7 {[%clk 0:00:04]} 53. f6+ {[%clk 0:00:24]} 1-0


[Site "https://www.chess.com"]

[Event "Titled Tuesday Blitz August 31 2021"]
[White "Sadhwani, Raunak"]
[Black "Quintiliano Pinto, Renato R."]
[WhiteFideId "35093487"]
[BlackFideId "2117568"]
[WhiteElo "2958"]
[BlackElo "2652"]
[Result "0-1"]
[Round "08"]
[TimeControl "180+1"]
[Date "2021.08.31"]
[WhiteClock "0:00:02"]
[BlackClock "0:00:16"]

1. b3 {[%clk 0:03:00]}  e5 {[%clk 0:02:59]} 2. Bb2 {[%clk 0:03:01]}  Nc6 {[%clk 0:02:58]} 3. e3 {[%clk 0:03:02]}  Nf6 {[%clk 0:02:58]} 4. Nf3 {[%clk 0:03:03]}  e4 {[%clk 0:02:54]} 5. Nd4 {[%clk 0:03:03]}  Nxd4 {[%clk 0:02:51]} 6. Bxd4 {[%clk 0:03:04]}  Be7 {[%clk 0:02:48]} 7. c4 {[%clk 0:03:04]}  O-O {[%clk 0:02:48]} 8. Nc3 {[%clk 0:03:04]}  c5 {[%clk 0:02:48]} 9. Bxf6 {[%clk 0:03:02]}  Bxf6 {[%clk 0:02:49]} 10. Rc1 {[%clk 0:03:02]}  Bxc3 {[%clk 0:02:46]} 11. dxc3 {[%clk 0:02:58]}  Re8 {[%clk 0:02:39]} 12. Be2 {[%clk 0:02:55]}  d6 {[%clk 0:02:35]} 13. O-O {[%clk 0:02:55]}  Qf6 {[%clk 0:02:29]} 14. Qd2 {[%clk 0:02:52]}  Bf5 {[%clk 0:02:27]} 15. Rfd1 {[%clk 0:02:52]}  Rad8 {[%clk 0:02:26]} 16. b4 {[%clk 0:02:50]}  b6 {[%clk 0:02:26]} 17. a4 {[%clk 0:02:50]}  Qg6 {[%clk 0:02:22]} 18. a5 {[%clk 0:02:50]}  h5 {[%clk 0:02:21]} 19. axb6 {[%clk 0:02:49]}  axb6 {[%clk 0:02:22]} 20. Ra1 {[%clk 0:02:48]}  Bc8 {[%clk 0:01:40]} 21. h4 {[%clk 0:02:42]}  Qf6 {[%clk 0:01:29]} 22. g3 {[%clk 0:02:26]}  g6 {[%clk 0:01:28]} 23. Ra7 {[%clk 0:02:20]}  Be6 {[%clk 0:01:21]} 24. Rb7 {[%clk 0:02:00]}  d5 {[%clk 0:01:19]} 25. Rxb6 {[%clk 0:01:30]}  dxc4 {[%clk 0:01:17]} 26. Qe1 {[%clk 0:01:21]}  cxb4 {[%clk 0:01:13]} 27. Rxb4 {[%clk 0:01:19]}  Rd3 {[%clk 0:01:05]} 28. Rb6 {[%clk 0:00:58]}  Qe5 {[%clk 0:00:55]} 29. Bxd3 {[%clk 0:00:43]}  exd3 {[%clk 0:00:54]} 30. f3 {[%clk 0:00:43]}  Qc5 {[%clk 0:00:26]} 31. Rb2 {[%clk 0:00:44]}  Bd5 {[%clk 0:00:24]} 32. Kf2 {[%clk 0:00:43]}  Re6 {[%clk 0:00:24]} 33. Rdb1 {[%clk 0:00:23]}  Rf6 {[%clk 0:00:23]} 34. f4 {[%clk 0:00:23]}  Qe7 {[%clk 0:00:22]} 35. e4 {[%clk 0:00:22]}  Bxe4 {[%clk 0:00:20]} 36. Rb8+ {[%clk 0:00:09]}  Kg7 {[%clk 0:00:19]} 37. R1b7 {[%clk 0:00:08]}  Qc5+ {[%clk 0:00:19]} 38. Qe3 {[%clk 0:00:03]}  Qxe3+ {[%clk 0:00:19]} 39. Kxe3 {[%clk 0:00:04]}  Bxb7 {[%clk 0:00:20]} 40. Rxb7 {[%clk 0:00:04]}  Re6+ {[%clk 0:00:20]} 41. Kf3 {[%clk 0:00:05]}  Rd6 {[%clk 0:00:19]} 42. Rb1 {[%clk 0:00:05]}  Kf6 {[%clk 0:00:18]} 43. Ke3 {[%clk 0:00:05]}  Kf5 {[%clk 0:00:18]} 44. Rb5+ {[%clk 0:00:02]}  Kg4 {[%clk 0:00:17]} 45. Rg5+ {[%clk 0:00:03]}  Kh3 {[%clk 0:00:17]} 46. Kd2 {[%clk 0:00:04]}  f5 {[%clk 0:00:17]} 47. Kd1 {[%clk 0:00:03]}  Re6 {[%clk 0:00:17]} 48. Kd2 {[%clk 0:00:02]}  Kg2 {[%clk 0:00:17]} 49. Kd1 {[%clk 0:00:01]}  Kf3 {[%clk 0:00:17]} 50. Kd2 {[%clk 0:00:02]}  Ra6 {[%clk 0:00:16]} 0-1


[Site "https://www.chess.com"]

[Event "Titled Tuesday Blitz August 31 2021"]
[White "Samsonkin, Artiom"]
[Black "Jobava, Baadur"]
[WhiteFideId "13503111"]
[BlackFideId "13601520"]
[WhiteElo "2513"]
[BlackElo "2748"]
[Result "0-1"]
[Round "08"]
[TimeControl "180+1"]
[Date "2021.08.31"]
[WhiteClock "0:00:02"]
[BlackClock "0:01:36"]

1. e4 {[%clk 0:03:00]}  c6 {[%clk 0:03:00]} 2. d4 {[%clk 0:03:00]}  d5 {[%clk 0:03:01]} 3. e5 {[%clk 0:03:01]}  Bf5 {[%clk 0:03:01]} 4. h4 {[%clk 0:03:01]}  Qc8 {[%clk 0:03:00]} 5. Nc3 {[%clk 0:03:00]}  h6 {[%clk 0:02:59]} 6. h5 {[%clk 0:02:54]}  e6 {[%clk 0:02:58]} 7. Bd3 {[%clk 0:02:53]}  Ne7 {[%clk 0:02:58]} 8. Nge2 {[%clk 0:02:51]}  Nd7 {[%clk 0:02:57]} 9. Bxf5 {[%clk 0:02:40]}  Nxf5 {[%clk 0:02:58]} 10. g4 {[%clk 0:02:39]}  Ne7 {[%clk 0:02:58]} 11. Be3 {[%clk 0:02:28]}  c5 {[%clk 0:02:55]} 12. f4 {[%clk 0:02:24]}  Nc6 {[%clk 0:02:54]} 13. Qd2 {[%clk 0:02:24]}  a6 {[%clk 0:02:51]} 14. dxc5 {[%clk 0:02:15]}  Bxc5 {[%clk 0:02:50]} 15. Bxc5 {[%clk 0:02:01]}  Nxc5 {[%clk 0:02:51]} 16. O-O-O {[%clk 0:02:00]}  Qc7 {[%clk 0:02:47]} 17. Kb1 {[%clk 0:01:59]}  O-O-O {[%clk 0:02:47]} 18. Qe3 {[%clk 0:01:57]}  Nd7 {[%clk 0:02:44]} 19. Nd4 {[%clk 0:01:48]}  Kb8 {[%clk 0:02:40]} 20. Nxc6+ {[%clk 0:01:31]}  Qxc6 {[%clk 0:02:41]} 21. Ne2 {[%clk 0:01:31]}  Rc8 {[%clk 0:02:39]} 22. Nd4 {[%clk 0:01:31]}  Qb6 {[%clk 0:02:38]} 23. f5 {[%clk 0:01:22]}  Nc5 {[%clk 0:02:35]} 24. fxe6 {[%clk 0:01:19]}  fxe6 {[%clk 0:02:36]} 25. Nb3 {[%clk 0:01:08]}  Rhf8 {[%clk 0:02:25]} 26. Rhf1 {[%clk 0:01:04]}  Rxf1 {[%clk 0:02:16]} 27. Rxf1 {[%clk 0:01:04]}  Qb5 {[%clk 0:02:16]} 28. Rc1 {[%clk 0:00:41]}  Ne4 {[%clk 0:02:13]} 29. Nd4 {[%clk 0:00:35]}  Qb6 {[%clk 0:02:13]} 30. c4 {[%clk 0:00:36]}  Ng5 {[%clk 0:01:50]} 31. cxd5 {[%clk 0:00:34]}  Rxc1+ {[%clk 0:01:51]} 32. Kxc1 {[%clk 0:00:34]}  Qc5+ {[%clk 0:01:52]} 33. Kb1 {[%clk 0:00:20]}  Qxd5 {[%clk 0:01:53]} 34. a3 {[%clk 0:00:15]}  Kc8 {[%clk 0:01:45]} 35. Qf4 {[%clk 0:00:14]}  Kd7 {[%clk 0:01:44]} 36. Ne2 {[%clk 0:00:02]}  Qd3+ {[%clk 0:01:36]} 0-1


[Site "https://www.chess.com"]

[Event "Titled Tuesday Blitz August 31 2021"]
[White "Siva Mahadevan"]
[Black "Jakubowski, Krzysztof"]
[WhiteFideId "25043153"]
[BlackFideId "1112848"]
[WhiteElo "2203"]
[BlackElo "2414"]
[Result "1-0"]
[Round "08"]
[TimeControl "180+1"]
[Date "2021.08.31"]
[WhiteClock "0:01:03"]
[BlackClock "0:00:02"]

1. e4 {[%clk 0:03:00]}  c5 {[%clk 0:02:58]} 2. Nf3 {[%clk 0:03:00]}  e6 {[%clk 0:02:58]} 3. d4 {[%clk 0:03:01]}  cxd4 {[%clk 0:02:58]} 4. Nxd4 {[%clk 0:03:02]}  Nc6 {[%clk 0:02:58]} 5. Nc3 {[%clk 0:03:02]}  Qc7 {[%clk 0:02:58]} 6. Be2 {[%clk 0:03:03]}  a6 {[%clk 0:02:58]} 7. O-O {[%clk 0:03:04]}  Nf6 {[%clk 0:02:57]} 8. Be3 {[%clk 0:03:04]}  Be7 {[%clk 0:02:54]} 9. f4 {[%clk 0:03:05]}  d6 {[%clk 0:02:54]} 10. Kh1 {[%clk 0:03:05]}  O-O {[%clk 0:02:53]} 11. Qe1 {[%clk 0:03:06]}  Bd7 {[%clk 0:02:52]} 12. Qg3 {[%clk 0:03:06]}  b5 {[%clk 0:02:51]} 13. Nxc6 {[%clk 0:03:00]}  Bxc6 {[%clk 0:02:50]} 14. a3 {[%clk 0:03:00]}  Rad8 {[%clk 0:02:46]} 15. Bd3 {[%clk 0:02:59]}  Qb7 {[%clk 0:02:21]} 16. Bd4 {[%clk 0:02:56]}  g6 {[%clk 0:02:15]} 17. Rae1 {[%clk 0:02:55]}  Nh5 {[%clk 0:01:46]} 18. Qe3 {[%clk 0:02:31]}  Nxf4 {[%clk 0:01:41]} 19. Qxf4 {[%clk 0:02:32]}  e5 {[%clk 0:01:41]} 20. Bxe5 {[%clk 0:02:32]}  dxe5 {[%clk 0:01:40]} 21. Qxe5 {[%clk 0:02:33]}  b4 {[%clk 0:01:18]} 22. axb4 {[%clk 0:02:11]}  Bxb4 {[%clk 0:01:17]} 23. Re3 {[%clk 0:02:08]}  Bd6 {[%clk 0:01:11]} 24. Qf6 {[%clk 0:02:06]}  Be7 {[%clk 0:01:09]} 25. Qf4 {[%clk 0:02:00]}  Qxb2 {[%clk 0:01:03]} 26. Nd5 {[%clk 0:01:56]}  Bxd5 {[%clk 0:01:01]} 27. exd5 {[%clk 0:01:57]}  Bd6 {[%clk 0:00:57]} 28. Qh4 {[%clk 0:01:57]}  a5 {[%clk 0:00:52]} 29. Rh3 {[%clk 0:01:50]}  Qg7 {[%clk 0:00:50]} 30. Qa4 {[%clk 0:01:50]}  Bb4 {[%clk 0:00:47]} 31. c4 {[%clk 0:01:50]}  Qd4 {[%clk 0:00:42]} 32. Rhf3 {[%clk 0:01:43]}  Rd6 {[%clk 0:00:37]} 33. Qc2 {[%clk 0:01:34]}  Rb6 {[%clk 0:00:34]} 34. Rf4 {[%clk 0:01:32]}  Qe5 {[%clk 0:00:30]} 35. c5 {[%clk 0:01:30]}  Rbb8 {[%clk 0:00:22]} 36. Qc4 {[%clk 0:01:29]}  Rbc8 {[%clk 0:00:19]} 37. c6 {[%clk 0:01:27]}  Bd6 {[%clk 0:00:19]} 38. g3 {[%clk 0:01:26]}  Qe7 {[%clk 0:00:16]} 39. Re4 {[%clk 0:01:24]}  Qg5 {[%clk 0:00:14]} 40. Rfe1 {[%clk 0:01:21]}  h5 {[%clk 0:00:13]} 41. Qc1 {[%clk 0:01:19]}  Qd8 {[%clk 0:00:11]} 42. Qh6 {[%clk 0:01:19]}  Qf6 {[%clk 0:00:10]} 43. Rf1 {[%clk 0:01:16]}  Qc3 {[%clk 0:00:09]} 44. Bb1 {[%clk 0:01:13]}  Qg7 {[%clk 0:00:04]} 45. Qd2 {[%clk 0:01:10]}  Ra8 {[%clk 0:00:02]} 46. Ra4 {[%clk 0:01:03]} 1-0


[Site "https://www.chess.com"]

[Event "Titled Tuesday Blitz August 31 2021"]
[White "Skliarov, Viktor"]
[Black "Baskin, Robert"]
[WhiteFideId "14106736"]
[BlackFideId "24662402"]
[WhiteElo "2281"]
[BlackElo "2462"]
[Result "0-1"]
[Round "08"]
[TimeControl "180+1"]
[Date "2021.08.31"]
[WhiteClock "0:00:05"]
[BlackClock "0:00:12"]

1. e4 {[%clk 0:03:00]}  e6 {[%clk 0:02:58]} 2. d4 {[%clk 0:03:00]}  d5 {[%clk 0:02:58]} 3. e5 {[%clk 0:03:01]}  c5 {[%clk 0:02:58]} 4. c3 {[%clk 0:03:01]}  Nc6 {[%clk 0:02:58]} 5. Nf3 {[%clk 0:03:01]}  Qb6 {[%clk 0:02:58]} 6. a3 {[%clk 0:03:01]}  Nh6 {[%clk 0:02:58]} 7. b4 {[%clk 0:03:01]}  cxd4 {[%clk 0:02:58]} 8. Bxh6 {[%clk 0:03:02]}  gxh6 {[%clk 0:02:58]} 9. cxd4 {[%clk 0:03:03]}  Bd7 {[%clk 0:02:58]} 10. Be2 {[%clk 0:03:02]}  Rg8 {[%clk 0:02:57]} 11. O-O {[%clk 0:03:02]}  Rg4 {[%clk 0:02:51]} 12. h3 {[%clk 0:03:02]}  Rf4 {[%clk 0:02:51]} 13. g3 {[%clk 0:03:03]}  Rxf3 {[%clk 0:02:50]} 14. Bxf3 {[%clk 0:03:04]}  Qxd4 {[%clk 0:02:50]} 15. Qxd4 {[%clk 0:03:04]}  Nxd4 {[%clk 0:02:51]} 16. Bh5 {[%clk 0:03:04]}  a5 {[%clk 0:02:09]} 17. Nc3 {[%clk 0:03:03]}  Rc8 {[%clk 0:01:57]} 18. Ne2 {[%clk 0:02:47]}  Nc6 {[%clk 0:01:56]} 19. b5 {[%clk 0:02:34]}  Nxe5 {[%clk 0:01:49]} 20. a4 {[%clk 0:02:34]}  Bb4 {[%clk 0:01:42]} 21. Rfc1 {[%clk 0:02:20]}  Nc4 {[%clk 0:01:33]} 22. f4 {[%clk 0:01:51]}  Ke7 {[%clk 0:01:16]} 23. Kg2 {[%clk 0:01:44]}  f6 {[%clk 0:01:07]} 24. Rab1 {[%clk 0:00:59]}  Bd2 {[%clk 0:01:02]} 25. Rg1 {[%clk 0:00:40]}  e5 {[%clk 0:00:55]} 26. Bg4 {[%clk 0:00:15]}  Ne3+ {[%clk 0:00:51]} 27. Kf3 {[%clk 0:00:15]}  e4+ {[%clk 0:00:30]} 28. Kf2 {[%clk 0:00:15]}  Bxg4 {[%clk 0:00:30]} 29. hxg4 {[%clk 0:00:15]}  Nxg4+ {[%clk 0:00:31]} 30. Kg2 {[%clk 0:00:16]}  Rc2 {[%clk 0:00:30]} 31. Nd4 {[%clk 0:00:13]}  Ra2 {[%clk 0:00:30]} 32. Kh3 {[%clk 0:00:10]}  h5 {[%clk 0:00:27]} 33. Rg2 {[%clk 0:00:09]}  e3 {[%clk 0:00:20]} 34. Rd1 {[%clk 0:00:06]}  Rxa4 {[%clk 0:00:17]} 35. Rgxd2 {[%clk 0:00:05]}  exd2 {[%clk 0:00:14]} 36. Rxd2 {[%clk 0:00:05]}  Rb4 {[%clk 0:00:12]} 37. Kh4 {[%clk 0:00:05]}  Ne3 {[%clk 0:00:08]} 38. Kxh5 {[%clk 0:00:04]}  Nc4 {[%clk 0:00:08]} 39. Re2+ {[%clk 0:00:04]}  Kd6 {[%clk 0:00:09]} 40. Nf5+ {[%clk 0:00:04]}  Kc5 {[%clk 0:00:09]} 41. Re7 {[%clk 0:00:04]}  d4 {[%clk 0:00:09]} 42. Rxb7 {[%clk 0:00:04]}  d3 {[%clk 0:00:09]} 43. Rc7+ {[%clk 0:00:04]}  Kxb5 {[%clk 0:00:09]} 44. Rd7 {[%clk 0:00:04]}  d2 {[%clk 0:00:09]} 45. Kh6 {[%clk 0:00:03]}  Rb1 {[%clk 0:00:09]} 46. Kxh7 {[%clk 0:00:03]}  d1=Q {[%clk 0:00:09]} 47. Rxd1 {[%clk 0:00:03]}  Rxd1 {[%clk 0:00:10]} 48. g4 {[%clk 0:00:03]}  a4 {[%clk 0:00:10]} 49. g5 {[%clk 0:00:04]}  fxg5 {[%clk 0:00:11]} 50. fxg5 {[%clk 0:00:04]}  a3 {[%clk 0:00:11]} 51. g6 {[%clk 0:00:05]}  Rg1 {[%clk 0:00:11]} 52. g7 {[%clk 0:00:05]}  Rxg7+ {[%clk 0:00:10]} 53. Kxg7 {[%clk 0:00:06]}  a2 {[%clk 0:00:10]} 54. Nd4+ {[%clk 0:00:05]}  Kb4 {[%clk 0:00:11]} 55. Nc2+ {[%clk 0:00:05]}  Kc3 {[%clk 0:00:11]} 56. Na1 {[%clk 0:00:05]}  Kb2 {[%clk 0:00:12]} 0-1


[Site "https://www.chess.com"]

[Event "Titled Tuesday Blitz August 31 2021"]
[White "Timmermans, Mark"]
[Black "Khoroshev, Nikita"]
[WhiteFideId "1026399"]
[BlackFideId "14200287"]
[WhiteElo "2726"]
[BlackElo "2631"]
[Result "1-0"]
[Round "08"]
[TimeControl "180+1"]
[Date "2021.08.31"]
[WhiteClock "0:00:45"]
[BlackClock "0:00:03"]

1. b4 {[%clk 0:03:00]}  b6 {[%clk 0:02:45]} 2. Bb2 {[%clk 0:03:00]}  Bb7 {[%clk 0:02:46]} 3. b5 {[%clk 0:02:56]}  a6 {[%clk 0:02:44]} 4. a4 {[%clk 0:02:55]}  Nf6 {[%clk 0:02:42]} 5. e3 {[%clk 0:02:55]}  e6 {[%clk 0:02:43]} 6. Nf3 {[%clk 0:02:48]}  Be7 {[%clk 0:02:43]} 7. Be2 {[%clk 0:02:45]}  O-O {[%clk 0:02:43]} 8. O-O {[%clk 0:02:44]}  c6 {[%clk 0:02:39]} 9. c4 {[%clk 0:02:42]}  d5 {[%clk 0:02:37]} 10. d4 {[%clk 0:02:41]}  dxc4 {[%clk 0:02:32]} 11. Bxc4 {[%clk 0:02:40]}  axb5 {[%clk 0:02:32]} 12. axb5 {[%clk 0:02:41]}  Rxa1 {[%clk 0:02:32]} 13. Bxa1 {[%clk 0:02:42]}  Nbd7 {[%clk 0:02:27]} 14. Nbd2 {[%clk 0:02:40]}  Qa8 {[%clk 0:02:24]} 15. Bb2 {[%clk 0:02:37]}  Rc8 {[%clk 0:02:19]} 16. Qb3 {[%clk 0:02:36]}  c5 {[%clk 0:02:06]} 17. Bxe6 {[%clk 0:02:26]}  fxe6 {[%clk 0:02:06]} 18. Qxe6+ {[%clk 0:02:26]}  Kf8 {[%clk 0:02:06]} 19. e4 {[%clk 0:02:16]}  Bxe4 {[%clk 0:01:45]} 20. Re1 {[%clk 0:01:58]}  Qd5 {[%clk 0:01:33]} 21. Rxe4 {[%clk 0:01:56]}  Qxe6 {[%clk 0:01:33]} 22. Rxe6 {[%clk 0:01:56]}  cxd4 {[%clk 0:01:21]} 23. Nxd4 {[%clk 0:01:57]}  Kf7 {[%clk 0:01:10]} 24. Rc6 {[%clk 0:01:56]}  Ra8 {[%clk 0:01:02]} 25. Nc4 {[%clk 0:01:56]}  Ra2 {[%clk 0:00:59]} 26. h3 {[%clk 0:01:49]}  Nd5 {[%clk 0:00:53]} 27. Nf5 {[%clk 0:01:42]}  Bc5 {[%clk 0:00:50]} 28. Bd4 {[%clk 0:01:35]}  Rc2 {[%clk 0:00:25]} 29. Bxc5 {[%clk 0:01:25]}  bxc5 {[%clk 0:00:20]} 30. b6 {[%clk 0:01:05]}  g6 {[%clk 0:00:10]} 31. Nfd6+ {[%clk 0:00:59]}  Ke7 {[%clk 0:00:07]} 32. b7 {[%clk 0:00:55]}  Rc1+ {[%clk 0:00:05]} 33. Kh2 {[%clk 0:00:54]}  Rb1 {[%clk 0:00:06]} 34. Nc8+ {[%clk 0:00:49]}  Kd8 {[%clk 0:00:06]} 35. N8b6 {[%clk 0:00:46]}  N5xb6 {[%clk 0:00:03]} 36. Nxb6 {[%clk 0:00:46]}  Nb8 {[%clk 0:00:01]} 37. Rc8+ {[%clk 0:00:44]}  Ke7 {[%clk 0:00:02]} 38. Nd5+ {[%clk 0:00:43]}  Kd6 {[%clk 0:00:02]} 39. Rxb8 {[%clk 0:00:44]}  Kxd5 {[%clk 0:00:02]} 40. Rd8+ {[%clk 0:00:44]}  Kc6 {[%clk 0:00:03]} 41. b8=Q {[%clk 0:00:45]} 1-0


[Site "https://www.chess.com"]